[Event "FIDE WY-U16 Olympiad 2022"]
[Site "Nakhchivan"]
[Date "2022.10.06"]
[Round "5.2"]
[White "Paredes Guzman, Francisco Javier"]
[Black "Savicevs, Arsenijs"]
[Result "1/2-1/2"]
[ECO "A52"]
[WhiteElo "2023"]
[BlackElo "1878"]
[Annotator "TA"]
[PlyCount "145"]
[EventDate "2022.10.02"]
[EventType "team-tourn"]
[EventCountry "AZE"]
[SourceTitle "playchess.com"]
[Source "ChessBase"]
[SourceQuality "1"]
[WhiteTeam "Mexico"]
[WhiteTeamCountry "MEX"]
[TimeControl "40/5400+30:1800+30"]

{[%evp 17,145,37,40,32,18,28,44,30,41,32,47,19,60,52,69,14,68,63,77,45,61,0,0,0,13,18,163,177,162,170,268,250,243,214,213,222,214,202,224,220,219,224,204,211,214,52,49,56,53,60,330,70,61,66,289,79,85,0,0,0,88,74,66,71,75,70,85,72,66,58,56,57,63,59,129,116,497,81,84,72,107,104,105,73,82,0,110,0,79,67,176,160,169,168,168,160,159,12,225,40,40,47,79,12,79,12,12,12,12,12,16,12,16,15,19,19,20,19,26,8,8,8,8,8,8,8,8,8,8,8]} 1. d4 {[%emt 0:00:08]} Nf6 {[%emt 0:00:17]} 2. c4 {[%emt 0:00:10]} e5 {[%emt 0:00:23]} 3. dxe5 {[%emt 0:00:31]} Ng4 {[%emt 0:00:08]} 4. Bf4 {[%emt 0:00:08]} Bb4+ {[%emt 0:00:08]} 5. Nc3 {[%emt 0:00:26]} Bxc3+ {[%emt 0:00:11]} 6. bxc3 {[%emt 0:00:04]} Nc6 {[%emt 0:00:08]} 7. Nf3 {[%emt 0:00:03]} Qe7 {[%emt 0:00:06]} 8. Qd5 {[%emt 0:01:41]} f6 {[%emt 0:00:07]} 9. exf6 {[%emt 0:09:48]} Nxf6 {[%emt 0:00:09]} 10. Qd3 {[%emt 0:02:04] A52: Budapest Gambit.} d6 {[%emt 0:00:07]} 11. g3 {[%emt 0:05:02]} b6 {[%emt 0:02:13]} 12. Bg2 {[%emt 0:00:12] Hoping for Nd4. White is slightly better.} Bb7 $1 {[%emt 0:00:07]} 13. O-O {[%emt 0:18:44]} O-O {[%emt 0:00:12]} 14. Rfe1 {[%emt 0:24:09][%cal Oc4c5]} Na5 {[%emt 0:03:01]} 15. e4 $1 {[%emt 0:00:40][%cal Oc4c5]} Rad8 {[%emt 0:05:57][%cal Rb7e4] [#]} 16. Qf1 $146 {[%emt 0:02:37]} (16. Qc2 $14) ({Predecessor:} 16. Rad1 Rfe8 17. Nd2 Nc6 18. Bg5 Ne5 19. Qc2 Rb8 20. f4 Nf7 21. Bh4 Qe6 22. c5 bxc5 {1-0 (38) Strnad,J (2228)-Blazek,J (2205) ICCF email 2004}) 16... Ba6 {[%emt 0:13:53]} ({Black should play} 16... Rde8 $11) 17. e5 $14 {[%emt 0:03:35]} dxe5 {[%emt 0:00:31]} 18. Rxe5 {[%emt 0:02:00]} (18. Nxe5 $5 {[%cal Rg2h3]} Qc5 19. Rad1 $14) 18... Qa3 {[%emt 0:00:15]} 19. Qc1 {[%emt 0:01:38]} (19. Bh3 $14) 19... Qxc1+ $11 {[%emt 0:00:46]} 20. Rxc1 {[%emt 0:00:06]} Nxc4 {[%emt 0:00:12]} 21. Ree1 {[%emt 0:07:26]} Rf7 {[%emt 0:33:45]} (21... c5 $11 {and Black stays safe.}) 22. Ng5 $1 $18 {[%emt 0:00:25]} Rfd7 {[%emt 0:00:11]} 23. Bh3 {[%emt 0:01:45] This bishop pair is nice.} Rd3 {[%emt 0:08:28]} (23... c5 $142 24. Bxd7 Rxd7) 24. Ne6 {[%emt 0:05:14]} Bc8 {[%emt 0:04:13]} 25. Nxd8 {[%emt 0:04:30]} Bxh3 {[%emt 0:00:13]} 26. Nc6 {[%emt 0:01:19]} ({Inferior is} 26. Bxc7 Rd7 $15) 26... Nd5 {[%emt 0:03:37]} 27. Ne7+ {[%emt 0:02:22]} ({But not} 27. Nxa7 h6 28. Re4 Nxf4) 27... Kf7 {[%emt 0:00:20]} 28. Nxd5 {[%emt 0:00:21]} Rxd5 {[%emt 0:00:03]} 29. Bxc7 {[%emt 0:02:54]} Nd2 {[%emt 0:00:19]} 30. Re3 {[%emt 0:00:06] Against Nf3+} Ra5 {[%emt 0:00:01]} 31. Rc2 $2 {[%emt 0:01:05]} (31. Ra1 $18) 31... Rb5 $1 $14 {[%emt 0:01:09] ( -> ...Rb1+)} 32. f3 {[%emt 0:01:32]} Rb1+ {[%emt 0:07:05]} 33. Kf2 {[%emt 0:00:04]} Rf1+ {[%emt 0:00:41]} 34. Ke2 {[%emt 0:00:03]} Nc4 {[%emt 0:00:16]} 35. Re4 {[%emt 0:00:55]} b5 {[%emt 0:00:15]} (35... Ra1 $14) 36. g4 $2 {[%emt 0:00:29]} (36. Rf4+ $18 {and White stays clearly on top.} Ke6 37. Rh4) 36... Rg1 $16 {[%emt 0:01:42]} 37. Kd3 {[%emt 0:01:47]} Rd1+ {[%emt 0:00:44]} 38. Ke2 {[%emt 0:00:05]} Rg1 {[%emt 0:00:17] [#]} 39. Rxc4 $1 {[%emt 0:02:29]} Rg2+ {[%emt 0:02:20]} (39... bxc4 40. Ke3) 40. Ke3 {[%emt 0:00:20]} Rxc2 {[%emt 0:00:19][%mdl 4096] Endgame KRB-KRB} 41. Rc5 {[%emt 0:30:18]} Bf1 {[%emt 0:30:18]} 42. Be5 {[%emt 0:00:42]} g6 {[%emt 0:10:02]} 43. f4 {[%emt 0:01:24]} Rxh2 {[%emt 0:01:14]} 44. Rc7+ {[%emt 0:00:08]} Ke6 {[%emt 0:00:09]} 45. Rxa7 {[%emt 0:00:35]} Bc4 {[%emt 0:00:52] [#]} (45... Rh4 $14) 46. a4 $1 {[%emt 0:00:43]} bxa4 $2 {[%emt 0:01:20][%mdl 8192] [#]} (46... Kd5 $16 {is a better chance.}) 47. Rxa4 $2 {[%emt 0:00:10]} (47. Kd4 $1 $18 {[%cal Rd4c4] and the rest is easy.}) 47... Bf1 {[%emt 0:00:52]} 48. Rd4 {[%emt 0:00:00]} Rh3+ {[%emt 0:00:00]} 49. Kf2 {[%emt 0:00:00]} Bd3 {[%emt 0:00:00]} 50. Kg2 {[%emt 0:00:00]} Re3 {[%emt 0:00:00][%cal Og6g5]} 51. Kf2 {[%emt 0:00:00]} Rh3 {[%emt 0:00:00]} 52. Kg2 {[%emt 0:00:00]} Re3 {[%emt 0:00:00][%cal Og6g5]} 53. c4 {[%emt 0:00:00] And now Kf2 would win.} h5 {[%emt 0:00:00]} (53... g5 $14) 54. Rd6+ $18 {[%emt 0:00:00]} Ke7 {[%emt 0:00:00]} 55. gxh5 {[%emt 0:00:00]} gxh5 {[%emt 0:00:00]} 56. c5 {[%emt 0:00:00]} Bf5 {[%emt 0:00:00]} 57. c6 {[%emt 0:00:00]} (57. Rf6 $16 Bg4 58. Rg6) 57... Re2+ $2 {[%emt 0:00:00]} (57... Rc3 $11) 58. Kf3 $2 {[%emt 0:00:00]} (58. Kg3 $18) 58... Rc2 $14 {[%emt 0:00:00]} 59. Rh6 {[%emt 0:00:00] aiming for c7.} h4 $1 {[%emt 0:02:50]} 60. Bf6+ {[%emt 0:00:00]} (60. Ke3 $16) 60... Kf7 {[%emt 0:02:10]} (60... Kd6 $1 $11 {remains equal.}) 61. Bxh4 {[%emt 0:00:00]} ({White should try} 61. Bh8 $16) 61... Rc3+ $1 $11 {[%emt 0:03:09]} 62. Ke2 {[%emt 0:00:00] Strongly threatening Rf6+.} Be4 $1 {[%emt 0:00:05]} 63. Rf6+ {[%emt 0:00:00]} Kg8 {[%emt 0:00:01]} 64. Re6 {[%emt 0:00:00]} Bxc6 {[%emt 0:00:08]} 65. Re7 {[%emt 0:00:00]} Rc4 {[%emt 0:00:07]} 66. Ke3 {[%emt 0:00:00]} Bg2 {[%emt 0:02:37]} 67. Bg5 {[%emt 0:00:00]} Bh3 {[%emt 0:00:11]} 68. Bh6 {[%emt 0:00:00]} Rc6 {[%emt 0:00:34] The position is equal.} 69. Re8+ {[%emt 0:00:00]} Kh7 {[%emt 0:00:07]} 70. Bg5 {[%emt 0:00:00]} Re6+ {[%emt 0:00:03]} 71. Rxe6 {[%emt 0:00:00]} Bxe6 {[%emt 0:00:11]} 72. Kd4 {[%emt 0:00:00]} Ba2 {[%emt 0:00:07]} 73. Ke4 {Weighted Error Value: White=0.51/Black=0.37} 1/2-1/2

[Event "FIDE WY-U16 Olympiad 2022"]
[Site "Nakhchivan"]
[Date "2022.10.06"]
[Round "5.3"]
[White "Ozkan, Taha"]
[Black "Nurmanova, Alua"]
[Result "1-0"]
[ECO "E92"]
[WhiteElo "2299"]
[BlackElo "2188"]
[Annotator "TA"]
[PlyCount "126"]
[EventDate "2022.10.02"]
[EventType "team-tourn"]
[EventCountry "AZE"]
[SourceTitle "playchess.com"]
[Source "ChessBase"]
[SourceQuality "1"]
[WhiteTeam "Turkey"]
[BlackTeam "Kazakhstan"]
[WhiteTeamCountry "TUR"]
[BlackTeamCountry "KAZ"]
[TimeControl "40/5400+30:1800+30"]

{[%evp 24,126,26,17,12,22,22,14,22,-7,-16,-11,-4,-22,-22,-62,-79,-75,0,0,0,0,0,0,0,0,0,0,2,0,75,79,73,77,63,68,128,95,100,100,101,127,239,238,229,215,254,247,272,142,208,208,204,206,197,198,240,135,169,150,291,291,1315,1269,1312,933,760,593,1406,1385,1375,1217,1419,1411,1345,992,29979,29980,29980,29978,29978,29978,29977,29976,29977,29975,29975,29976,29976,29977,29977,29978,29978,29979,29979,29979,29981,29980,29980,29981,29981,29981,29981,29982,29981]} 1. d4 {[%emt 0:00:04]} Nf6 {[%emt 0:00:06]} 2. c4 {[%emt 0:00:05]} g6 {[%emt 0:00:04]} 3. Nc3 Bg7 {[%emt 0:00:05]} 4. e4 {[%emt 0:00:08]} d6 {[%emt 0:00:05]} 5. Nf3 {[%emt 0:00:05]} O-O {[%emt 0:00:07]} 6. Be2 {[%emt 0:00:04]} e5 {[%emt 0:01:38]} 7. Be3 {[%emt 0:00:20]} Ng4 {[%emt 0:01:03]} 8. Bg5 {[%emt 0:00:05]} f6 {[%emt 0:00:06]} 9. Bc1 {[%emt 0:00:04]} Nc6 {[%emt 0:13:38]} 10. d5 {[%emt 0:00:18]} Nd4 {[%emt 0:08:01]} 11. Nxd4 {[%emt 0:00:10]} exd4 {[%emt 0:00:05]} 12. Nb5 {[%emt 0:00:05]} (12. Bxg4 dxc3 13. Bxc8 Qxc8) 12... f5 {[%emt 0:03:28]} 13. O-O {[%emt 0:00:15]} Ne5 {[%emt 0:19:40] E97: King's Indian: Classical Main Line (6...e5 7 0-0 Nc6): 8 Be3 and 8 d5 Ne7, not 9 Ne1.} 14. exf5 {[%emt 0:10:34]} d3 $1 {[%emt 0:00:32]} 15. Bxd3 {[%emt 0:00:27]} Nxd3 {[%emt 0:00:06] [#] The position is equal.} 16. f6 $146 {[%emt 0:05:50] [#]} (16. Qxd3 $5 {[%cal Rf5g6]} Bxf5 17. Qe2 $11) ({Predecessor:} 16. Qxd3 Bxf5 17. Qd1 Qf6 18. Nxc7 Rac8 19. Ne6 Bxe6 20. dxe6 Qxe6 21. Be3 b6 22. Bd4 Bxd4 23. Qxd4 Rxc4 {½-½ (34) Rusev,K (2544)-Spasov,V (2553) Pleven 2015}) 16... Qxf6 {[%emt 0:10:12]} 17. Qxd3 {[%emt 0:00:13]} Bf5 {[%emt 0:00:19]} 18. Qb3 {[%emt 0:10:15]} Rf7 {[%emt 0:03:56]} 19. Re1 {[%emt 0:04:28]} Qh4 {[%emt 0:07:19]} 20. Be3 {[%emt 0:28:19]} Be5 {[%emt 0:05:06] This bishop pair is nice.} ({Black should try} 20... Raf8 $1 $17 {Threatens to win with ...Be4.} 21. f4 a6) 21. f4 $1 $11 {[%emt 0:01:47]} Bxf4 {[%emt 0:01:08]} 22. Bxf4 {[%emt 0:00:07]} Qxf4 {[%emt 0:00:06]} 23. Qc3 {[%emt 0:02:09]} Raf8 {[%emt 0:02:36]} 24. Qd4 {[%emt 0:06:25]} Qg5 {[%emt 0:03:28]} 25. Qe3 {[%emt 0:02:28] Inhibits Bh3.} Qg4 {[%emt 0:00:51]} 26. Nd4 {[%emt 0:03:36]} c6 {[%emt 0:07:06]} (26... Bd7 $11 {keeps the balance.} 27. h3 Qh4) 27. h3 $16 {[%emt 0:04:34]} Qh4 {[%emt 0:00:13]} 28. dxc6 {[%emt 0:00:28]} bxc6 {[%emt 0:00:21]} 29. Nxc6 {[%emt 0:00:49]} Be4 {[%emt 0:05:20]} 30. g3 {[%emt 0:04:59]} (30. Qxe4 $2 Rf1+ $1 31. Kh2 Qxe4 32. Rxe4 Rxa1 $19) 30... Qxh3 {[%emt 0:00:15][%csl Ge4][%cal Rh3g2]} (30... Qf6 $2 31. Qxe4 Qf2+ 32. Kh1 $18) 31. Qxe4 {[%emt 0:00:07] aiming for Qg2.} Qxg3+ {[%emt 0:00:26]} 32. Qg2 {[%emt 0:00:07]} Qh4 {[%emt 0:00:43]} (32... Qxg2+ $16 {was called for.} 33. Kxg2 Rf2+ 34. Kg1 Rxb2) 33. Re4 $1 $18 {[%emt 0:02:03]} Qh5 {[%emt 0:02:06]} 34. Nd4 {[%emt 0:02:24][%cal Bc6d4,Bd4e6,Be6f4][%mdl 32]} Rf4 {[%emt 0:05:01]} 35. Rae1 {[%emt 0:01:19]} Qc5 {[%emt 0:00:56]} 36. b4 {[%emt 0:01:00]} ({Better is} 36. b3 $18) 36... Qxc4 {[%emt 0:01:02]} (36... Qxb4 $16 {was necessary.} 37. Ne6 Rf3 38. Nxf8 Qc5+ 39. R1e3 Rxe3) 37. Ne6 $1 {[%emt 0:03:03]} Rxe4 {[%emt 0:00:06]} 38. Qxe4 {[%emt 0:00:04] The board is on fire.} ({Much less strong is} 38. Rxe4 $6 Qc1+ 39. Kh2 Rf5 $16) 38... Qxe4 {[%emt 0:01:20]} 39. Rxe4 {[%emt 0:00:06][%mdl 4096] Endgame KRN-KR} Rc8 {[%emt 0:00:09]} 40. Kf2 {[%emt 0:00:55]} (40. Rf4 $18) 40... h6 {[%emt 0:00:30]} 41. Nf4 {[%emt 0:30:18] Nd5 is the strong threat.} Kf7 {[%emt 0:30:06]} (41... Rc2+ $16 42. Re2 Rc4) 42. Nd5 {[%emt 0:00:17] And now Re7+ would win.} Rc2+ $2 {[%emt 0:00:43]} (42... g5 43. Re7+ Kg6 44. Rxa7 Rc2+ 45. Kf3 h5) 43. Re2 $1 {[%emt 0:00:10]} Rxe2+ {[%emt 0:00:04]} 44. Kxe2 {[%emt 0:00:05] KN-KP} Ke6 {[%emt 0:00:10]} 45. Nc3 {[%emt 0:01:43]} a6 {[%emt 0:00:59]} 46. Ne4 {[%emt 0:02:59]} Kd5 {[%emt 0:00:00] [#]} 47. Kd3 $1 {[%emt 0:00:00]} h5 {[%emt 0:00:00]} 48. a4 {[%emt 0:00:00]} h4 {[%emt 0:00:00]} 49. Ng5 {[%emt 0:00:00]} a5 {[%emt 0:00:00] [#]} 50. b5 $1 {[%emt 0:00:00] White mates.} ({Worse is} 50. bxa5 Kc6 $11) 50... Kc5 {[%emt 0:00:00]} 51. Nh3 {[%emt 0:00:00]} Kd5 {[%emt 0:00:00]} 52. Nf4+ {[%emt 0:00:00]} Kc5 {[%emt 0:00:00]} 53. Kc3 {[%emt 0:00:00]} d5 {[%emt 0:00:00]} 54. Nxg6 {[%emt 0:00:00] KN-K3P} h3 {[%emt 0:00:00]} 55. Nf4 {[%emt 0:00:00]} d4+ {[%emt 0:00:00]} 56. Kc2 {[%emt 0:00:00]} (56. Kd3 h2 57. Ne6+ Kb6 58. Nxd4 h1=Q $19) 56... h2 {[%emt 0:00:00]} 57. Nd3+ {[%emt 0:00:00]} Kd5 {[%emt 0:00:00]} 58. Nf2 {[%emt 0:00:00]} Kc5 {[%emt 0:00:00]} 59. Kd2 {[%emt 0:00:00]} Kd5 {[%emt 0:00:00]} 60. Ke2 {[%emt 0:00:00]} Kd6 {[%emt 0:00:00]} 61. Kf3 {[%emt 0:00:00]} d3 {[%emt 0:00:00]} 62. Kg2 {[%emt 0:00:00]} d2 {[%emt 0:00:00]} 63. Ne4+ {[%emt 0:00:00]} Kd5 {Weighted Error Value: White=0.12 (very precise) /Black=0.35} 1-0

[Event "FIDE WY-U16 Olympiad 2022"]
[Site "Nakhchivan"]
[Date "2022.10.06"]
[Round "5.3"]
[White "Zajakins, Artjoms"]
[Black "Zacarias Rodriguez, Santiago"]
[Result "0-1"]
[ECO "A56"]
[WhiteElo "1810"]
[BlackElo "2123"]
[Annotator "TA"]
[PlyCount "88"]
[EventDate "2022.10.02"]
[EventType "team-tourn"]
[EventCountry "AZE"]
[SourceTitle "playchess.com"]
[Source "ChessBase"]
[SourceQuality "1"]
[BlackTeam "Mexico"]
[BlackTeamCountry "MEX"]
[TimeControl "40/5400+30:1800+30"]

{[%evp 17,88,70,105,85,104,80,100,100,86,82,108,65,96,100,98,86,87,88,91,93,105,105,105,0,0,0,0,-47,-46,-48,-39,-43,-29,-29,-29,-20,0,0,0,0,0,-13,0,0,0,-51,-58,-364,-347,-337,-296,-281,-289,-298,-302,-535,-526,-510,-487,-1402,-1373,-1301,-1247,-1395,-1374,-29981,-29982,-29996,-29997,-29997,-29998,-29998,-29999]} 1. d4 {[%emt 0:00:04]} Nf6 {[%emt 0:00:09]} 2. c4 {[%emt 0:00:07]} c5 {[%emt 0:00:07]} 3. d5 {[%emt 0:00:07]} g6 {[%emt 0:00:09]} 4. Nc3 {[%emt 0:00:07]} Bg7 {[%emt 0:00:10]} 5. e4 {[%emt 0:00:09]} d6 {[%emt 0:00:11]} 6. Nf3 {[%emt 0:00:09]} O-O {[%emt 0:01:56]} 7. h3 {[%emt 0:00:12]} e6 {[%emt 0:01:33]} 8. Bd3 {[%emt 0:00:09]} Nbd7 {[%emt 0:04:10]} 9. O-O {[%emt 0:00:14]} e5 {[%emt 0:00:09]} 10. a3 {[%emt 0:00:28] E90: King's Indian: Classical: Early deviations and 6 h3.} h6 {[%emt 0:03:05]} 11. b4 {[%emt 0:00:51]} Nh7 {[%emt 0:10:46] [#]} 12. Nb5 $146 {[%emt 0:00:20] White is better.} ({Predecessor:} 12. Qc2 b6 13. Rb1 Ndf6 14. bxc5 bxc5 15. Re1 Nh5 16. Bf1 Ng5 17. Nxg5 hxg5 18. g3 {½-½ (30) So,W (2760)-Carlsen,M (2870) Kolkata 2019}) 12... Qe7 {[%emt 0:02:30]} 13. Be3 {[%emt 0:00:15]} b6 {[%emt 0:06:56]} 14. Qb1 {[%emt 0:09:39]} (14. Qc1) 14... a6 {[%emt 0:08:41]} 15. Nc3 {[%emt 0:00:09]} Ndf6 {[%emt 0:01:03][%cal Bd7f6,Bf6h5,Bh5f4][%mdl 32]} 16. Na4 {[%emt 0:20:11]} Qd8 {[%emt 0:03:50]} 17. bxc5 {[%emt 0:06:02]} bxc5 {[%emt 0:00:18]} 18. Qb6 $1 {[%emt 0:00:15]} Qe7 {[%emt 0:06:34]} 19. Rab1 {[%emt 0:06:54][%cal Ra4c5]} Nh5 {[%emt 0:12:10] [#]} 20. Qa5 {[%emt 0:11:26]} ({Better is} 20. Nxc5 $1 $16 {[%mdl 512] Black must now prevent Nb3.} dxc5 21. Bxc5) 20... Nf4 $1 $11 {[%emt 0:18:35]} 21. Bxf4 {[%emt 0:01:09]} exf4 {[%emt 0:00:02]} 22. Nb6 {[%emt 0:00:23] [#]} (22. Rb3 $11 {deserves consideration.}) 22... Ng5 $1 $15 {[%emt 0:04:20]} 23. Nxg5 {[%emt 0:13:25]} (23. Nxa8 $2 Nxf3+ 24. Kh1 Bxh3 $1 $19) 23... Qxg5 {[%emt 0:00:09]} 24. Nxc8 {[%emt 0:00:49]} (24. Nxa8 $2 Bxh3 25. g3 fxg3 $19) 24... f3 {[%emt 0:03:00][%csl Gf3][%cal Rg5g2]} 25. Ne7+ $1 {[%emt 0:01:09]} Kh7 {[%emt 0:02:49][%csl Gf3][%cal Rg5g2] The board is on fire.} 26. g3 {[%emt 0:00:30] Hoping for Nc6.} Qxe7 $40 {[%emt 0:02:07][%mdl 128] Black has some attack.} (26... Be5 {keeps more tension.} 27. Kh2 Qxe7 28. Rb3 Rab8) 27. Qd2 {[%emt 0:02:40]} Be5 {[%emt 0:00:56] Inhibits Qf4.} 28. Rb3 {[%emt 0:01:59]} h5 {[%emt 0:02:25]} 29. h4 {[%emt 0:03:28]} Qd7 {[%emt 0:01:08]} 30. Rfb1 {[%emt 0:00:51]} Qg4 {[%emt 0:02:33]} (30... Qh3 $5 31. Bf1 $8 Qg4 $11) 31. Qg5 {[%emt 0:01:33]} ({White should try} 31. Rb7 $11) 31... Kg7 {[%emt 0:01:31][%cal Bh7g7,Bg7f6,Bf6g5][%mdl 32]} ({Much weaker is} 31... Qh3 32. Bf1 Qg4 33. Qxg4 hxg4 34. Rb6 $11) 32. Qxg4 $4 {[%emt 0:04:29][%mdl 8192] This move loses the game for White.} ({White has to play} 32. a4 $1 $15) 32... hxg4 $19 {[%emt 0:00:01]} 33. Rb7 {[%emt 0:00:16]} Kf6 {[%emt 0:01:37] Against Re7} 34. Bc2 {[%emt 0:01:59]} g5 {[%emt 0:00:22]} 35. hxg5+ {[%emt 0:06:52]} Kxg5 {[%emt 0:00:01]} 36. Ba4 $2 {[%emt 0:00:20]} (36. Re7 Rfb8 37. Reb7 Rxb7 38. Rxb7) 36... Rh8 {[%emt 0:01:09]} 37. Bd7 {[%emt 0:01:52]} Raf8 {[%emt 0:01:12] And now ...Bf6 would win.} 38. Bf5 {[%emt 0:00:15]} (38. R1b6 $142 Bd4 39. e5 (39. Rxa6 {is a self mate.} Rh1+ 40. Kxh1 Bxf2) (39. Rxd6 $2 Rh3 $19)) 38... Bf6 {[%emt 0:00:22]} 39. e5 {[%emt 0:05:31]} dxe5 {[%emt 0:00:19]} 40. Be4 {[%emt 0:00:20]} Rh6 {[%emt 0:00:38] ( -> ...Rfh8)} 41. Rb8 {[%emt 0:03:14] [#]} Bd8 $1 {[%emt 0:00:08] Black mates.} 42. R1b3 {[%emt 0:00:44]} Rfh8 {[%emt 0:00:38][%csl Gh8][%cal Rh6h1]} 43. Bxf3 {[%emt 0:00:09]} gxf3 {[%emt 0:00:06]} 44. Rxf3 {[%emt 0:00:08]} Rh1+ {[%emt 0:00:03] Weighted Error Value: White=0.49/Black=0.08 (flawless)} 0-1

[Event "FIDE WY-U16 Olympiad 2022"]
[Site "Nakhchivan"]
[Date "2022.10.06"]
[Round "5.4"]
[White "Akhilbay, Imangali"]
[Black "Aydin, Gulenay"]
[Result "1/2-1/2"]
[ECO "B52"]
[WhiteElo "2098"]
[BlackElo "2109"]
[Annotator "TA"]
[PlyCount "55"]
[EventDate "2022.10.02"]
[EventType "team-tourn"]
[EventCountry "AZE"]
[SourceTitle "playchess.com"]
[Source "ChessBase"]
[SourceQuality "1"]
[WhiteTeam "Kazakhstan"]
[BlackTeam "Turkey"]
[WhiteTeamCountry "KAZ"]
[BlackTeamCountry "TUR"]
[TimeControl "40/5400+30:1800+30"]

{[%evp 20,55,-5,-10,-13,-7,0,0,0,0,0,0,0,0,0,0,0,0,0,0,0,0,0,0,0,-5,0,0,0,-2,0,0,0,-13,0,0,0,-7]} 1. e4 {[%emt 0:00:14]} c5 {[%emt 0:00:05]} 2. Nf3 {[%emt 0:00:13]} d6 {[%emt 0:00:06]} 3. Bb5+ {[%emt 0:00:16]} Bd7 {[%emt 0:00:07]} 4. Bxd7+ {[%emt 0:00:10]} Qxd7 {[%emt 0:00:02]} 5. O-O {[%emt 0:00:12]} Nc6 {[%emt 0:00:11]} 6. c3 {[%emt 0:00:06]} Nf6 {[%emt 0:00:04][%cal Bg8f6,Bf6e4,Be4d2][%mdl 32]} 7. Re1 {[%emt 0:00:04]} e6 {[%emt 0:00:17]} 8. d4 {[%emt 0:00:05]} cxd4 {[%emt 0:00:04]} 9. cxd4 {[%emt 0:00:02]} d5 {[%emt 0:00:05]} 10. e5 {[%emt 0:00:04]} Ne4 {[%emt 0:00:04]} 11. Nbd2 {[%emt 0:01:59] The position is equal.} Nxd2 $1 {[%emt 0:00:08] B52: Sicilian: Moscow Variation with 3...Bd7.} ({Don't take} 11... Bb4 12. Nxe4 dxe4 13. Rxe4 $16) 12. Bxd2 {[%emt 0:00:05]} Bb4 {[%emt 0:00:15]} 13. Re3 {[%emt 0:02:18]} Bxd2 {[%emt 0:00:29]} 14. Qxd2 {[%emt 0:00:05]} O-O {[%emt 0:00:27]} 15. h4 {[%emt 0:00:39]} h6 {[%emt 0:02:29]} 16. h5 {[%emt 0:03:11]} Rac8 {[%emt 0:01:12]} 17. Rc1 {[%emt 0:05:48]} Ne7 {[%emt 0:07:03]} 18. Rec3 {[%emt 0:06:04]} Rxc3 {[%emt 0:02:00]} 19. Rxc3 {[%emt 0:00:11]} Rc8 {[%emt 0:00:05] [#]} 20. Rxc8+ $146 {[%emt 0:02:58]} (20. Rc5) (20. Ra3) ({Predecessor:} 20. b3 b6 21. g4 a5 22. Kg2 Rc6 23. a4 Qc7 24. Rxc6 Qxc6 25. Ne1 Qc7 26. Qc2 {1-0 (57) Dubov,D (2711)-Vasquez Schroder,R (2500) Chess.com INT 2022}) 20... Qxc8 $11 {[%emt 0:00:18][%mdl 4096] Endgame KQN-KQN} 21. g4 {[%emt 0:00:04]} Qd8 {[%emt 0:10:24]} 22. Kf1 {[%emt 0:19:03]} Nc6 {[%emt 0:09:01]} 23. b3 {[%emt 0:04:07]} Qe7 {[%emt 0:04:26]} 24. Kg2 {[%emt 0:10:06]} Kf8 {[%emt 0:11:59]} 25. Qf4 {[%emt 0:09:59]} Kg8 {[%emt 0:09:35]} 26. Qd2 {[%emt 0:00:07]} Kf8 {[%emt 0:00:11]} 27. Qf4 {[%emt 0:01:09]} Kg8 {[%emt 0:00:03]} 28. Qd2 {[%emt 0:08:05] A rather calm draw.  Weighted Error Value: White=0.01 (flawless) /Black=0.02 (flawless)} 1/2-1/2